bitfinex/quotes_SOLUSD_20240703
["timestamp","ask_amount","ask_price","bid_price","bid_amount"]
[1720008411562,15.89,143.4,143.39,0.8123711]
[1720008411769,21.97647898,143.45,143.39,0.8123711]
[1720008411945,16.39,143.4,143.39,0.8123711]
[1720008412475,15.89,143.4,143.39,0.8123711]
[1720008413347,16.23,143.4,143.39,0.8123711]
[1720008416061,16.06,143.4,143.39,0.8123711]
[1720008416298,15.89,143.4,143.39,0.8123711]
[1720008417094,35.89,143.4,143.39,0.8123711]
[1720008420188,36.06,143.4,143.39,0.8123711]
[1720008420369,36.23,143.4,143.39,0.8123711]
[1720008422191,20.17,143.4,143.39,0.8123711]
[1720008422363,36.39,143.4,143.39,0.8123711]
[1720008422804,20.0,143.4,143.39,0.8123711]
[1720008422990,36.39,143.4,143.39,0.8123711]
[1720008423780,36.73,143.4,143.39,0.8123711]
[1720008423988,56.87635641,143.4,143.33,15.8272]
[1720008424183,16.39,143.34,143.32,6.5007]
[1720008424372,16.39,143.33,143.32,6.5007]
[1720008425278,16.39,143.33,143.3,16.4087]
[1720008425600,16.39,143.31,143.3,16.4087]
[1720008427191,16.39,143.31,143.28,6.4663]
[1720008427398,16.39,143.29,143.28,6.4663]
[1720008427705,16.39,143.29,143.28,13.4456]
[1720008428198,16.39,143.29,143.26,16.0979]
[1720008428492,65.56,143.36,143.26,16.0979]
[1720008428493,16.39,143.27,143.26,16.0979]
[1720008429278,16.39,143.27,143.26,23.0782]
[1720008429702,16.39,143.27,143.26,16.0979]
[1720008431982,6.21777898,143.35,143.27,6.9795]
[1720008432298,16.39,143.28,143.27,8.37522006]
[1720008432599,6.21777898,143.35,143.27,1.39576997]
[1720008432895,16.39,143.31,143.29,24.4256]
[1720008433069,16.39,143.3,143.29,24.4256]
[1720008433269,16.39,143.3,143.29,17.4469]
[1720008433473,16.39,143.3,143.28,6.9791]
[1720008433881,16.39,143.3,143.29,6.9788]
[1720008434075,6.21777898,143.38,143.31,6.9778]
[1720008434399,16.39,143.32,143.3,24.4237]
[1720008435175,16.39,143.31,143.29,13.2697]
[1720008435375,16.39,143.3,143.29,6.291]
[1720008436982,16.39,143.3,143.29,13.2698]
[1720008437591,16.39,143.3,143.29,6.291]
[1720008437899,16.39,143.3,143.27,24.4283]
[1720008438397,16.39,143.3,143.28,6.9793]
[1720008439582,16.39,143.3,143.27,17.4487]
[1720008439793,16.39,143.28,143.27,17.4487]
[1720008439993,65.56,143.36,143.27,24.4281]
[1720008439994,16.39,143.3,143.27,24.4281]
[1720008440197,16.39,143.3,143.28,6.9793]
[1720008440501,16.39,143.3,143.27,24.4283]
[1720008441177,16.39,143.29,143.27,24.4283]
[1720008441497,16.39,143.28,143.27,6.9798]
[1720008441702,16.39,143.29,143.27,6.9798]
[1720008442084,16.39,143.29,143.26,40.5287]
[1720008442397,16.39,143.29,143.27,6.9797]
[1720008442784,16.39,143.29,143.26,40.5287]
[1720008443303,16.39,143.28,143.25,6.9695711]
[1720008443485,16.39,143.26,143.25,0.8123711]
[1720008445793,21.74237898,143.33,143.25,0.8123711]
[1720008445988,16.39,143.28,143.26,6.9799]
[1720008446387,16.39,143.28,143.25,7.7929711]
[1720008446808,16.39,143.27,143.25,7.7929711]
[1720008447100,16.39,143.28,143.25,7.7929711]
[1720008447302,16.39,143.28,143.26,6.9801]
[1720008447894,16.39,143.27,143.25,7.7930711]
[1720008448101,16.39,143.27,143.25,0.8123711]
[1720008448301,16.39,143.26,143.25,0.8123711]
[1720008451317,21.74237898,143.33,143.25,0.8123711]
[1720008451501,16.39,143.26,143.25,0.8123711]
[1720008454588,6.983,143.27,143.25,0.8123711]
[1720008454886,16.39,143.26,143.25,0.8123711]
[1720008457428,23.373,143.26,143.25,0.8123711]
[1720008458413,16.39,143.26,143.25,0.8123711]
[1720008458911,16.39,143.26,143.19,24.48298157]
[1720008459211,16.39,143.2,143.19,0.04138157]
[1720008460325,0.17,143.25,143.19,7.02508157]
[1720008460486,16.0643,143.28,143.19,7.02508157]
[1720008460487,16.39,143.21,143.2,6.9832]
[1720008460891,16.39,143.21,143.19,17.50038157]
[1720008461711,16.39,143.21,143.19,24.48388157]
[1720008462016,16.39,143.21,143.19,17.50038157]
[1720008462187,16.39,143.2,143.19,0.04138157]
[1720008465191,16.39,143.2,143.19,7.02508157]
[1720008465387,16.39,143.2,143.19,0.04138157]
[1720008468509,23.373,143.2,143.19,0.04138157]
[1720008469525,6.983,143.21,143.19,0.04138157]
[1720008469824,65.56,143.22,143.19,0.04138157]
[1720008471523,6.983,143.21,143.19,0.04138157]
[1720008472714,65.56,143.22,143.19,0.04138157]
[1720008472920,16.39,143.2,143.19,0.04138157]
[1720008473093,1.3823,143.19,143.1,0.8123711]
[1720008473295,16.39,143.11,143.1,0.8123711]
[1720008475014,65.56,143.15,143.1,7.8004711]
[1720008475403,8.7053,143.19,143.1,7.8004711]
[1720008475602,16.39,143.12,143.1,7.8004711]
[1720008476306,1.7223,143.19,143.1,7.0123711]
[1720008476307,1.3823,143.19,143.1,7.0123711]
[1720008476510,16.39,143.17,143.12,16.39]
[1720008476712,6.983,143.19,143.14,24.451]
[1720008476713,16.39,143.16,143.14,24.451]
[1720008477721,6.983,143.18,143.14,17.4652]
[1720008477930,32.88,143.21,143.14,24.4512]
[1720008478422,32.88,143.21,143.17,6.9842]
[1720008478724,39.09777898,143.24,143.18,1.39666306]
[1720008479432,39.09777898,143.24,143.18,8.38066306]
[1720008479605,39.09777898,143.24,143.19,1.39656551]
[1720008480102,39.09777898,143.24,143.18,17.4603]
[1720008480103,32.88,143.24,143.18,17.4603]
[1720008480307,32.88,143.24,143.18,24.4441]
[1720008480604,32.88,143.24,143.18,17.4603]
[1720008480918,32.88,143.24,143.17,22.4141]
[1720008481821,6.983,143.25,143.2,6.9829]
[1720008482033,6.983,143.25,143.19,17.4588]
[1720008482411,6.983,143.25,143.19,24.4423]
[1720008482730,6.983,143.25,143.19,17.4588]
[1720008483203,6.983,143.25,143.19,24.4424]
[1720008483408,6.983,143.25,143.19,17.4588]
[1720008483931,32.88,143.24,143.17,15.4296]
[1720008484303,32.88,143.24,143.18,6.9839]
[1720008484504,32.88,143.24,143.18,17.4602]
[1720008484915,32.88,143.24,143.19,6.9836]
[1720008485308,32.88,143.24,143.18,24.4442]
[1720008485509,32.88,143.24,143.18,17.4602]
[1720008486026,32.88,143.24,143.17,15.4296]
[1720008486231,32.88,143.24,143.17,22.4141]
[1720008486410,32.88,143.24,143.17,32.8911]
[1720008486730,32.88,143.24,143.17,15.4296]
[1720008486950,32.88,143.24,143.14,17.4644]
[1720008487108,32.88,143.21,143.14,17.4644]
[1720008487508,0.34,143.2,143.12,28.9631]
[1720008487833,0.34,143.2,143.13,6.9866]
[1720008488030,0.34,143.2,143.12,28.9632]
[1720008488207,32.88,143.18,143.12,6.987]
[1720008488402,32.88,143.18,143.11,24.4553]
[1720008489712,0.34,143.17,143.11,17.4679]
[1720008489915,32.88,143.15,143.1,0.8123711]
[1720008490614,32.88,143.15,143.1,7.8004711]
[1720008491227,32.88,143.15,143.11,6.9876]
[1720008491947,32.88,143.15,143.1,25.2700711]
[1720008492116,32.88,143.15,143.1,18.2821711]
[1720008492439,6.983,143.13,143.1,18.2821711]
[1720008492815,6.983,143.13,143.1,25.2701711]
[1720008493017,6.983,143.13,143.1,0.8123711]
[1720008493622,22.3553,143.13,143.1,0.8123711]
[1720008495743,6.983,143.13,143.1,0.8123711]
[1720008496036,6.983,143.13,143.11,6.9874]
[1720008496211,6.983,143.13,143.12,6.9871]
[1720008496416,6.983,143.13,143.11,6.9874]
[1720008496715,6.983,143.13,143.1,25.2704711]
[1720008497035,6.983,143.13,143.1,18.2824711]
[1720008497626,6.983,143.13,143.1,25.2704711]
[1720008498535,6.983,143.13,143.1,0.8123711]
[1720008500827,6.983,143.13,143.1,7.8002711]
[1720008501228,6.983,143.13,143.1,0.8123711]
[1720008501427,6.983,143.13,143.1,18.2817711]
[1720008501835,6.983,143.13,143.1,0.8123711]
[1720008502225,6.983,143.13,143.11,6.9875]
[1720008502421,6.983,143.13,143.11,17.4687]
[1720008502628,6.983,143.13,143.12,6.9871]
[1720008502848,6.983,143.13,143.11,24.4563]
[1720008504947,15.1132,143.17,143.11,24.4563]
[1720008505535,32.88,143.18,143.11,24.4563]
[1720008506132,32.88,143.18,143.11,17.4687]
[1720008506447,32.88,143.18,143.12,6.9871]
[1720008506633,32.88,143.18,143.11,24.4561]
[1720008507543,6.983,143.17,143.11,24.4561]
[1720008508250,6.983,143.17,143.11,17.4687]
[1720008508625,32.88,143.18,143.11,24.4561]
[1720008508834,32.88,143.18,143.11,17.4687]
[1720008509128,32.88,143.18,143.1,16.2496711]
[1720008509334,0.17,143.17,143.1,16.2496711]
[1720008510337,0.34,143.17,143.1,16.2496711]
[1720008511646,0.34,143.17,143.1,33.7196711]
[1720008511852,0.34,143.17,143.11,6.9875]
[1720008512027,0.34,143.17,143.1,18.2823711]
[1720008513145,0.17,143.17,143.12,24.4543]
[1720008513552,39.863,143.18,143.12,17.4673]
[1720008513553,32.88,143.18,143.12,17.4673]
[1720008513852,32.88,143.18,143.11,6.9874]
[1720008514052,0.17,143.17,143.1,7.8002711]
[1720008515537,0.17,143.17,143.11,6.9876]
[1720008515740,16.45,143.12,143.11,6.9876]
[1720008516355,16.45,143.12,143.1,7.8003711]
[1720008516559,16.45,143.11,143.1,0.8123711]
[1720008517868,49.0259,143.14,143.1,0.8123711]
[1720008518856,49.0259,143.14,143.1,7.8003711]
[1720008519250,49.0259,143.14,143.1,0.8123711]
[1720008521252,32.91,143.12,143.1,0.8123711]
[1720008521456,0.17,143.11,143.1,0.8123711]
[1720008521659,0.34,143.11,143.1,0.8123711]
[1720008522144,32.91,143.12,143.1,0.8123711]
[1720008522341,0.34,143.13,143.1,0.8123711]
[1720008523056,0.17,143.13,143.1,0.8123711]
[1720008523264,0.34,143.13,143.1,0.8123711]
[1720008523756,0.17,143.13,143.1,0.8123711]
[1720008525365,6.983,143.13,143.1,0.8123711]
[1720008525554,49.0259,143.14,143.1,0.8123711]
[1720008526039,32.91,143.14,143.1,0.8123711]
[1720008526241,32.91,143.19,143.1,7.3995711]
[1720008526662,32.91,143.19,143.11,6.9873]
[1720008526872,16.2506,143.2,143.11,6.9873]
[1720008527057,32.91,143.18,143.1,31.8570711]
[1720008527258,32.91,143.18,143.1,24.8690711]
[1720008527959,32.91,143.18,143.1,7.3995711]
[1720008528365,32.91,143.18,143.1,14.3874711]
[1720008528554,0.17,143.17,143.1,14.3874711]
[1720008528754,0.34,143.17,143.1,14.3874711]
[1720008529378,0.17,143.17,143.1,7.3995711]
[1720008529580,32.91,143.18,143.1,7.3995711]
[1720008529747,32.91,143.18,143.11,6.9874]
[1720008530449,32.91,143.18,143.1,24.8694711]
[1720008530952,0.34,143.17,143.1,7.3995711]
[1720008531150,32.91,143.15,143.1,7.3995711]
[1720008532150,32.91,143.15,143.1,0.8123711]
[1720008532551,0.17,143.14,143.1,0.8123711]
[1720008532862,32.91,143.12,143.1,0.8123711]
[1720008534872,0.17,143.11,143.1,0.8123711]
[1720008535365,32.91,143.12,143.1,0.8123711]
[1720008538968,48.1756,143.15,143.1,0.8123711]
[1720008539151,0.17,143.14,143.1,0.8123711]
[1720008539354,32.91,143.12,143.1,0.8123711]
[1720008544474,0.34,143.14,143.1,0.8123711]
[1720008544684,32.91,143.13,143.1,0.8123711]
[1720008545858,16.46,143.11,143.1,0.8123711]
[1720008547859,5.94191307,143.15,143.1,0.8123711]
[1720008548378,16.46,143.11,143.1,0.8123711]
[1720008550378,5.94191307,143.15,143.1,0.8123711]
[1720008550552,16.46,143.11,143.1,0.8123711]
[1720008551282,16.63,143.11,143.1,0.8123711]
[1720008551776,16.8,143.11,143.1,0.8123711]
[1720008552463,16.63,143.11,143.1,0.8123711]
[1720008553859,33.27,143.11,143.1,0.8123711]
[1720008554357,32.93,143.11,143.1,0.8123711]
[1720008557260,32.93,143.14,143.1,0.8123711]
[1720008557798,0.34,143.13,143.1,0.8123711]
[1720008558162,32.93,143.11,143.1,0.8123711]
[1720008560980,0.17,143.13,143.1,0.8123711]
[1720008562985,0.34,143.13,143.1,0.8123711]
[1720008572086,6.28191307,143.13,143.1,0.8123711]
[1720008573297,13.26491307,143.13,143.1,0.8123711]
[1720008575194,6.28191307,143.13,143.1,0.8123711]
[1720008575383,5.94191307,143.13,143.1,0.8123711]
[1720008575780,16.46,143.11,143.1,0.8123711]
[1720008576801,16.63,143.11,143.1,0.8123711]
[1720008583394,16.46,143.11,143.1,0.8123711]
[1720008583595,5.94191307,143.13,143.1,0.8123711]
[1720008583780,16.46,143.11,143.1,0.8123711]
[1720008585694,5.94191307,143.16,143.1,22.5964711]
[1720008585899,16.46,143.11,143.1,22.5964711]
[1720008586590,65.84,143.15,143.1,22.5964711]
[1720008586904,16.46,143.11,143.1,22.5964711]
[1720008587907,5.94191307,143.16,143.1,22.5964711]
[1720008588105,16.46,143.11,143.1,22.5964711]
[1720008590806,65.84,143.15,143.1,22.5964711]
[1720008590981,16.46,143.11,143.1,22.5964711]
[1720008591301,16.46,143.11,143.1,0.8123711]
[1720008600210,5.94191307,143.16,143.1,0.8123711]
[1720008600510,16.46,143.12,143.1,0.8123711]
[1720008600804,16.46,143.11,143.1,0.8123711]
[1720008602684,16.63,143.11,143.1,0.8123711]
[1720008602995,16.8,143.11,143.1,0.8123711]
[1720008603189,0.34,143.11,143.1,0.8123711]
[1720008603396,82.3161,143.15,143.1,0.8123711]
[1720008603705,16.46,143.11,143.1,0.8123711]
[1720008605706,16.8,143.11,143.1,0.8123711]
[1720008608521,16.63,143.11,143.1,0.8123711]
[1720008608818,82.3161,143.15,143.1,0.8123711]
[1720008609022,16.46,143.11,143.1,0.8123711]
[1720008610301,16.63,143.11,143.1,0.8123711]
[1720008611101,16.46,143.11,143.1,0.8123711]
[1720008611990,82.3161,143.15,143.1,0.8123711]
[1720008611991,5.94191307,143.16,143.1,0.8123711]
[1720008612194,16.46,143.11,143.1,0.8123711]
[1720008614018,7.18848808,143.17,143.1,0.8123711]
[1720008614192,16.46,143.11,143.1,0.8123711]
[1720008614389,20.34,143.16,143.1,0.8123711]
[1720008614593,65.84,143.15,143.1,7.8000711]
[1720008614794,16.46,143.11,143.1,0.8123711]
[1720008618828,65.84,143.15,143.1,0.8123711]
[1720008619006,16.46,143.11,143.1,0.8123711]
[1720008620404,0.17,143.14,143.1,0.8123711]
[1720008620705,65.84,143.15,143.1,0.8123711]
[1720008620706,16.46,143.11,143.1,0.8123711]
[1720008622731,5.94191307,143.17,143.1,0.8123711]
[1720008622940,16.46,143.11,143.1,0.8123711]
[1720008626545,3.90244943,143.13,143.1,0.8123711]
[1720008626716,16.46,143.11,143.1,0.8123711]
[1720008631348,16.8,143.11,143.1,0.8123711]
[1720008634059,53.26,143.11,143.03,22.1027]
[1720008634348,16.46,143.04,143.03,29.0941]
[1720008635556,65.84,143.08,143.03,29.0941]
[1720008640838,65.84,143.08,143.03,22.1027]
[1720008641038,65.84,143.08,143.02,17.4798]
[1720008641039,16.46,143.04,143.02,24.4718]
[1720008641246,16.46,143.03,143.02,24.4718]
[1720008643656,65.84,143.08,143.02,24.4718]
[1720008643862,16.46,143.03,143.02,24.4718]
[1720008644366,16.46,143.03,143.0,100.0]
[1720008644573,32.92,143.01,143.0,100.0]
[1720008644740,33.09,143.01,143.0,100.0]
[1720008645069,82.64,143.01,143.0,100.0]
[1720008645265,82.64,143.01,143.0,92.983]
[1720008646038,82.64,143.01,142.95,22.4288]
[1720008646039,82.64,143.01,142.95,0.05]
[1720008646241,16.46,142.97,142.95,0.05]
[1720008646533,20.46779839,142.97,142.95,0.05]
[1720008646776,20.63779839,142.97,142.95,0.05]
[1720008647072,20.46779839,142.97,142.95,0.05]
[1720008648495,44.93628647,142.97,142.95,0.05]
[1720008648765,33.26,142.96,142.95,0.05]
[1720008648978,33.26,142.96,142.91,0.03333333]
[1720008649175,16.46,142.92,142.91,0.03333333]
[1720008649356,16.8,142.92,142.91,0.03333333]
[1720008649557,16.63,142.92,142.91,0.03333333]
[1720008650171,16.46,142.92,142.91,0.03333333]
[1720008651460,26.87368647,142.97,142.91,0.03333333]
[1720008651665,16.46,142.92,142.91,0.03333333]
[1720008653071,16.46,142.92,142.87,21.35093333]
[1720008653267,16.46,142.88,142.85,0.25]
[1720008653567,16.46,142.88,142.82,35.8209711]
[1720008653568,16.46,142.86,142.82,0.5549711]
[1720008653746,16.46,142.87,142.82,0.5549711]
[1720008653747,16.46,142.84,142.82,0.5549711]
[1720008654185,16.46,142.83,142.8,7.0026]
[1720008654480,0.34,142.82,142.73,16.46]
[1720008654770,6.3845,142.9,142.78,16.46]
[1720008654972,16.46,142.83,142.79,1.39934516]
[1720008655157,16.46,142.83,142.78,16.46]
[1720008655158,16.46,142.82,142.71,5.60783276]
[1720008655359,16.46,142.78,142.73,24.5209]
[1720008655594,16.46,142.79,142.73,33.9747]
[1720008655874,16.46,142.79,142.77,0.85906125]
[1720008656079,16.46,142.79,142.74,7.0053]
[1720008656080,16.46,142.79,142.75,7.0052]
[1720008656277,0.17,142.84,142.76,7.0044]
[1720008656579,16.46,142.8,142.77,7.0042]
[1720008656882,0.17,142.84,142.77,7.0042]
[1720008657077,16.46,142.8,142.77,17.51]
[1720008657258,20.0,142.89,142.77,25.91457734]
[1720008657459,16.46,142.81,142.77,24.5142]
[1720008657676,16.46,142.81,142.77,17.51]
[1720008657870,65.84,142.87,142.77,33.97]
[1720008658067,16.46,142.82,142.79,7.0029]
[1720008658376,16.46,142.81,142.78,7.0036]
[1720008658766,6.82302418,142.88,142.8,7.0027]
[1720008658970,6.82302418,142.88,142.79,17.5074]
[1720008659164,6.82302418,142.88,142.79,24.5102]
[1720008659165,16.46,142.84,142.79,24.5102]
[1720008659376,16.46,142.83,142.79,24.5102]
[1720008659994,16.46,142.85,142.82,7.0018]
[1720008660163,16.46,142.85,142.81,17.5049]
[1720008660365,16.46,142.86,142.84,7.0008]
[1720008660979,16.46,142.86,142.83,24.5041]
[1720008661364,7.83848808,142.91,142.84,7.0008]
[1720008661676,6.82302418,142.92,142.83,55.0029]
[1720008661993,16.46,142.88,142.86,6.9997]
[1720008662168,16.46,142.89,142.85,24.5007]
[1720008662366,16.46,142.88,142.83,7.0009]
[1720008662783,6.82302418,142.92,142.85,7.0002]
[1720008663102,16.46,142.89,142.86,6.9998]
[1720008663270,16.46,142.89,142.85,7.0002]
[1720008663593,16.46,142.89,142.86,6.9995]
[1720008663795,16.4817,142.97,142.87,6.9989]
[1720008663971,16.4817,142.97,142.88,6.9988]
[1720008664174,6.82302418,142.97,142.88,17.4968]
[1720008664380,33.0,142.97,142.88,17.4968]
[1720008664894,33.0,142.97,142.88,24.4954]
[1720008665095,33.0,142.97,142.87,6.9992]
[1720008665464,33.0,142.96,142.85,38.5399]
[1720008665780,33.0,142.96,142.87,6.9992]
[1720008666394,0.17,142.95,142.88,6.9988]
[1720008666693,0.17,142.95,142.83,21.04]
[1720008666990,0.17,142.95,142.88,6.9985]
[1720008667189,0.17,142.95,142.87,17.4979]
[1720008667398,0.17,142.95,142.87,24.4971]
[1720008667981,0.17,142.95,142.87,6.9992]
[1720008668181,0.17,142.95,142.83,23.22073753]
[1720008668480,0.17,142.95,142.86,15.2943]
[1720008670390,0.17,142.95,142.88,6.9985]
[1720008670567,0.34,142.95,142.86,15.2943]
[1720008671070,0.34,142.95,142.86,22.2937]
[1720008671270,0.17,142.95,142.87,6.9988]
[1720008671476,0.17,142.95,142.88,17.4967]
[1720008671877,0.17,142.95,142.86,22.2939]
[1720008672080,0.17,142.95,142.87,6.9993]
[1720008672279,0.17,142.95,142.87,17.4979]
[1720008672485,0.17,142.95,142.89,6.9982]
[1720008672697,0.34,142.96,142.89,24.4933]
[1720008673596,0.34,142.96,142.89,17.4951]
[1720008673802,0.34,142.96,142.89,24.4934]
[1720008673988,0.34,142.96,142.89,17.4951]
[1720008674175,0.34,142.96,142.89,24.4934]
[1720008674691,6.1526,142.98,142.93,6.9963]
[1720008674872,33.0,143.0,142.93,24.4865]
[1720008675272,12.62672418,143.03,142.96,6.9945]
[1720008675273,45.62672418,143.03,142.96,6.9945]
[1720008675483,15.9177,143.06,142.93,36.7003]
[1720008675791,39.17302418,143.08,143.02,6.992]
[1720008675982,33.0,143.08,143.01,24.4731]
[1720008676184,33.0,143.08,143.01,17.4808]
[1720008676382,33.0,143.08,143.0,6.9929]
[1720008676577,33.0,143.08,142.98,17.484]
[1720008676782,6.17302418,143.07,142.98,17.484]
[1720008676987,6.17302418,143.07,142.98,24.4779]
[1720008677180,6.17302418,143.07,142.98,17.484]
[1720008677384,33.0,143.05,142.96,6.1686]
[1720008677585,33.0,143.05,142.97,17.4858]
[1720008677786,33.0,143.05,142.99,17.4834]
[1720008677994,6.17302418,143.07,142.99,17.4834]
[1720008678187,6.17302418,143.07,143.01,24.473]
[1720008679296,33.0,143.08,143.01,24.473]
[1720008679680,33.0,143.08,143.02,6.992]
[1720008680091,33.0,143.08,143.01,24.473]
[1720008680287,0.17,143.07,142.99,6.9934]
[1720008680499,33.0,143.08,143.01,6.9921]
[1720008680682,33.0,143.08,143.0,17.482]
[1720008681303,33.0,143.08,143.03,6.9914]
[1720008681488,33.0,143.08,143.02,24.4716]
[1720008681683,45.17702418,143.11,143.02,17.4797]
[1720008681997,6.004,143.11,143.04,17.4771]
[1720008682299,39.983,143.12,143.04,17.4771]
[1720008682300,6.983,143.12,143.04,17.4771]
[1720008683506,33.0,143.09,143.01,17.4804]
[1720008683707,33.0,143.09,142.98,17.4845]
[1720008684186,33.0,143.06,142.98,6.9935]
[1720008684496,33.0,143.06,142.99,6.993]
[1720008684706,54.7222,143.08,143.02,6.992]
[1720008685073,33.0,143.08,143.03,6.9913]
[1720008685276,33.0,143.08,143.02,6.9915]
[1720008685876,33.0,143.04,142.92,6.3084]
[1720008686689,0.17,143.03,142.94,6.9959]
[1720008687006,0.17,143.03,142.9,68.2452]
[1720008687007,33.0,143.01,142.9,68.2452]
[1720008687306,0.34,143.0,142.92,6.9969]
[1720008687481,0.34,143.0,142.91,6.9972]
[1720008687905,0.34,143.0,142.93,6.9962]
[1720008688682,33.0,143.01,142.94,17.4895]
[1720008688880,33.0,143.01,142.96,6.9949]
[1720008689094,21.97612418,143.03,142.96,6.9949]
[1720008689281,33.34,143.04,142.97,6.9943]
[1720008689480,0.17,143.03,142.96,17.4871]
[1720008689682,0.34,143.03,142.96,17.4871]
[1720008689883,0.34,143.03,142.95,6.9953]
[1720008690093,6.52,143.06,142.93,56.0197]
[1720008690304,0.17,143.05,142.93,56.0197]
[1720008690797,6.52,143.06,142.98,6.9936]
[1720008690979,6.52,143.06,142.99,1.31276163]
[1720008691178,6.52,143.06,142.99,8.30616163]
[1720008691394,13.3841,143.12,142.98,27.4933]
[1720008691591,13.3841,143.12,143.01,6.9924]
[1720008691801,13.3841,143.12,143.01,24.4733]
[1720008692404,6.4011,143.12,143.04,17.4771]
[1720008692708,15.371,143.13,143.05,6.9904]
[1720008692910,15.371,143.13,143.04,24.4679]
[1720008693203,15.371,143.13,143.05,6.9901]
[1720008693403,6.983,143.14,143.06,6.9899]
[1720008694195,6.983,143.14,143.06,21.04]
[1720008694391,6.983,143.14,143.08,24.4613]
[1720008696309,6.983,143.14,143.05,17.4757]
[1720008696510,6.983,143.14,143.06,6.9897]
[1720008697090,6.983,143.14,143.07,6.9895]
[1720008698017,6.983,143.14,143.06,21.04]
[1720008698889,6.983,143.14,143.08,17.4721]
[1720008699089,6.983,143.14,143.05,17.4757]
[1720008699412,6.983,143.14,143.06,6.9896]
[1720008699602,6.983,143.14,143.07,6.9895]
[1720008700816,6.983,143.14,143.07,17.4737]
[1720008701399,6.983,143.14,143.08,6.989]
[1720008702011,6.983,143.14,143.09,6.9885]
[1720008702305,0.8123711,143.17,143.09,17.4709]
[1720008702515,0.17,143.16,143.1,6.9879]
[1720008702903,0.8123711,143.17,143.11,6.9875]
[1720008703296,0.8123711,143.17,143.12,6.987]
[1720008703704,0.8123711,143.17,143.1,34.9386]
[1720008703906,0.8123711,143.17,143.07,42.5438]
[1720008704106,0.8123711,143.17,143.08,17.4717]
[1720008704409,0.8123711,143.17,143.1,6.9877]
[1720008704711,0.8123711,143.17,143.1,24.458]
[1720008705018,0.8123711,143.17,143.1,17.4701]
[1720008705195,0.8123711,143.17,143.09,6.9884]
[1720008705196,0.8123711,143.17,143.07,21.5038]
[1720008705399,0.8123711,143.17,143.11,17.4685]
[1720008705913,0.8123711,143.17,143.1,6.9879]
[1720008706913,0.8123711,143.17,143.08,17.4717]
[1720008707089,0.8123711,143.17,143.1,24.4577]
[1720008707512,0.8123711,143.17,143.1,17.47]
[1720008707694,0.8123711,143.17,143.1,24.4577]
[1720008707898,0.8123711,143.17,143.07,27.303]
[1720008708398,0.8123711,143.17,143.12,6.9867]
[1720008708598,0.8123711,143.17,143.13,17.4663]
[1720008708796,0.8123711,143.17,143.13,24.4526]
[1720008709203,0.8123711,143.17,143.12,6.987]
[1720008709413,0.8123711,143.17,143.11,6.9872]
[1720008709606,0.8123711,143.17,143.12,6.9871]
[1720008709917,0.8123711,143.17,143.14,6.9861]
[1720008710122,0.8123711,143.17,143.12,17.467]
[1720008710505,0.8123711,143.17,143.13,6.9863]
[1720008710719,0.8123711,143.17,143.12,24.4539]
[1720008711218,0.8123711,143.17,143.13,6.9866]
[1720008711421,0.8123711,143.17,143.13,6.9863]